{"text_format":"3","workbook":"xlsx","n_sheets":26,"sheets":["Başlangıç","1","2","3","4","5","6","7","8","9","10","11","12","13","14","15","16","17","18","19","20","21","22","23","24","Daha fazla bilgi"],"not_rendered":{"images":24,"defined_names":8,"pivot_tables":19},"read":"whole","date_system":"1900"}

{"sheet":"Başlangıç","index":0,"n_rows":5,"n_cols":1,"rows_kept":5}
["Hoş geldiniz\nEkran okuyucuları için yönergeler: PivotTable’lardan daha fazlasını elde edin. Basit bir PivotTable, verilerinizin genel bir özetini sunar, ancak bazen belirli sorular için ayrıntılı yanıtlara ihtiyacınız olur. Bu noktada, daha fazla sütun alanı ve satır alanı eklemek size yardımcı olabilir. \nYönergeler, bir özelliğin kullanımı veya özellikle ilgili daha fazla bilgi için hangi hücreye gidilmesi gerektiğini gösterir.\nBaşlamak için CTRL+PAGE DOWN tuşlarına basın."]
["PivotTable’lardan daha fazlasını elde etme"]
["Basit bir PivotTable, verilerinize ilişkin genel bir özet sunar.\nAncak bazen belirli sorular için ayrıntılı yanıtlara ihtiyacınız olur.\nBu noktada, daha fazla sütun alanı ve satır alanı eklemek size yardımcı olabilir."]
["YARARLI BİLGİLER\nİlk öğreticiye baktınız mı? Bakmadıysanız Dosya > Yeni’ye gidin ve İlk PivotTable’ınızı oluşturun öğesini bulun."]
["CTRL+HOME tuşlarına basarak başa dönün. Tura başlamak için CTRL+PAGE DOWN tuşlarına basın."]

{"sheet":"1","index":1,"n_rows":16,"n_cols":9,"rows_kept":16}
["İlk öğreticide PivotTable kavramını size tanıtmıştık. Ayrıca satır alanının, değer alanını ayıran bir koşul olarak nasıl kullanılabileceğini de açıklamıştık.   "]
["H10-I14 aralığındaki hücrelerde, B8-E16 aralığındaki hücrelerde yer alan verileri özetleyen bir PivotTable bulunur. PivotTable’da iki sütun vardır: Alıcı ve Toplam Tutar. Alıcı sütununda Baba, Anne, Deniz ve Genel Toplam değerleri bulunur; Toplam Tutar sütununda ise 220 ₺ doları, 270 ₺ doları, 810 ₺ doları ve 1.300 ₺ doları değerleri vardır. Alıcı sütunu, bir Satır alanından; Toplam Tutar sütunu ise bir Değer alanından oluşur."]
["Bu öğreticiye devam etmek için CTRL+PAGE DOWN tuşlarına basın. Bir önceki sayfaya girmek için CTRL+PAGE UP tuşlarına basın."]
[]
[]
[]
[]
[null,"Tarih","Alıcı","Tür","Tutar"]
["Bu örnekte satır alanının...","2017-01-01","Baba","Hediyeler",{"v":95,"d":"95 ₺"}]
["...değer alanını ayırması görülür.","2017-01-15","Anne","Yiyecek",{"v":325,"d":"325 ₺"},null,null,"Alıcı","Toplam Tutar"]
[null,"2017-01-17","Anne","Biletler",{"v":250,"d":"250 ₺"},null,null,"Baba",{"v":220,"d":"220 ₺"}]
[null,"2017-01-21","Baba","Yiyecek",{"v":125,"d":"125 ₺"},null,null,"Deniz",{"v":270,"d":"270 ₺"}]
[null,"2017-02-02","Anne","Yiyecek",{"v":235,"d":"235 ₺"},null,null,"Anne",{"v":810,"d":"810 ₺"}]
[null,"2017-02-20","Deniz","Müzik",{"v":20,"d":"20 ₺"},null,null,"Grand Total",{"v":1300,"d":"1,300 ₺"}]
[null,"2017-02-25","Deniz","Biletler",{"v":125,"d":"125 ₺"}]
[null,"2017-02-25","Deniz","Spor",{"v":125,"d":"125 ₺"}]

{"sheet":"2","index":2,"n_rows":108,"n_cols":7,"rows_kept":108}
["Ancak PivotTable’ınıza ilk baktığınızda, daha fazla yanıt almaya ihtiyacınız olduğunu fark edebilirsiniz."]
["PivotTable’ınıza ilk baktığınızda aklınızda şu gibi sorular oluşabilir: “Bu satın almalar ne zaman gerçekleşti?”, “Her bir kişi parasını neye harcadı?”, “Annem bu kadar pahalı ne satın aldı?”"]
["Bu örnekte F11 ile G15 arasındaki hücreler, önceki iki sütunlu PivotTable’ı gösterir. Alıcı sütunu, bir Satır alanıdır ve Baba, Anne, Deniz ve Genel Toplam değerlerini içerir; Toplam Tutar ise bir Değer alanıdır ve 220 ₺ doları, 270 ₺ doları, 810 ₺ doları ve 1.300 ₺ doları değerlerini içerir. "]
["Bu öğreticiye devam etmek için CTRL+PAGE DOWN tuşlarına basın. Bir önceki sayfaya girmek için CTRL+PAGE UP tuşlarına basın."]
[]
[]
[]
[]
[]
[]
[{"$nulls":5},"Alıcı","Toplam Tutar"]
[{"$nulls":5},"Baba",{"v":220,"d":"220 ₺"}]
[{"$nulls":5},"Deniz",{"v":270,"d":"270 ₺"}]
[{"$nulls":5},"Anne",{"v":810,"d":"810 ₺"}]
[{"$nulls":5},"Grand Total",{"v":1300,"d":"1,300 ₺"}]
{"$rows_empty":84}
[null,"Tarih","Alıcı","Tür","Tutar"]
[null,"2017-01-01","Baba","Hediyeler",{"v":95,"d":"95 ₺"}]
[null,"2017-01-15","Anne","Yiyecek",{"v":325,"d":"325 ₺"}]
[null,"2017-01-17","Anne","Biletler",{"v":250,"d":"250 ₺"}]
[null,"2017-01-21","Baba","Yiyecek",{"v":125,"d":"125 ₺"}]
[null,"2017-02-02","Anne","Yiyecek",{"v":235,"d":"235 ₺"}]
[null,"2017-02-20","Deniz","Müzik",{"v":20,"d":"20 ₺"}]
[null,"2017-02-25","Deniz","Biletler",{"v":125,"d":"125 ₺"}]
[null,"2017-02-25","Deniz","Spor",{"v":125,"d":"125 ₺"}]

{"sheet":"3","index":3,"n_rows":108,"n_cols":7,"rows_kept":108}
["Bunların hepsi sorulması gereken sorulardır ancak şimdilik tek bir soruya odaklanalım."]
["Her bir kişi parasını neye harcadı?"]
["Referans için, F11 ile G15 arasındaki hücreler önceki iki sütunlu PivotTable’ı gösterir. Alıcı sütunu, bir Satır alanıdır ve Baba, Anne, Deniz ve Genel Toplam değerlerini içerir; Toplam Tutar ise bir Değer alanıdır ve 220 ₺ doları, 270 ₺ doları, 810 ₺ doları ve 1.300 ₺ doları değerlerini içerir. "]
["Bu öğreticiye devam etmek için CTRL+PAGE DOWN tuşlarına basın. Bir önceki sayfaya girmek için CTRL+PAGE UP tuşlarına basın."]
[]
[]
[]
[]
[]
[]
[{"$nulls":5},"Alıcı","Toplam Tutar"]
[{"$nulls":5},"Baba",{"v":220,"d":"220 ₺"}]
[{"$nulls":5},"Deniz",{"v":270,"d":"270 ₺"}]
[{"$nulls":5},"Anne",{"v":810,"d":"810 ₺"}]
[{"$nulls":5},"Grand Total",{"v":1300,"d":"1,300 ₺"}]
{"$rows_empty":84}
[null,"Tarih","Alıcı","Tür","Tutar"]
[null,"2017-01-01","Baba","Hediyeler",{"v":95,"d":"95 ₺"}]
[null,"2017-01-15","Anne","Yiyecek",{"v":325,"d":"325 ₺"}]
[null,"2017-01-17","Anne","Biletler",{"v":250,"d":"250 ₺"}]
[null,"2017-01-21","Baba","Yiyecek",{"v":125,"d":"125 ₺"}]
[null,"2017-02-02","Anne","Yiyecek",{"v":235,"d":"235 ₺"}]
[null,"2017-02-20","Deniz","Müzik",{"v":20,"d":"20 ₺"}]
[null,"2017-02-25","Deniz","Biletler",{"v":125,"d":"125 ₺"}]
[null,"2017-02-25","Deniz","Spor",{"v":125,"d":"125 ₺"}]

{"sheet":"4","index":4,"n_rows":108,"n_cols":9,"rows_kept":108}
["Sorduğumuz son soru şuydu: “Her bir kişi parasını neye harcadı?”"]
["Bu soruyu Tür için bir sütun alanı ekleyerek yanıtladık. Sonuç olarak, PivotTable’da her bir kişi tarafından gerçekleştirilen satın alma türünü gösteren beş yeni sütun oluştu. "]
["Yeni PivotTable’ımız artık Alıcı, Yiyecek, Müzik, Spor, Biletler, Hediyeler ve Genel Toplam sütunları ile C10 ile I15 arasındaki hücrelerde yer almaktadır. Alıcı ve Genel Toplam öncekiyle aynıdır ve yeni ayrıntı sütunları bunların arasındadır."]
["Bu öğreticiye devam etmek için CTRL+PAGE DOWN tuşlarına basın. Bir önceki sayfaya girmek için CTRL+PAGE UP tuşlarına basın."]
[]
[]
[]
[]
[]
[null,null,"Toplam Tutar","Tür"]
[null,null,"Alıcı","Yiyecek","Müzik","Spor","Biletler","Hediyeler","Grand Total"]
[null,null,"Baba",{"v":125,"d":"125 ₺"},{"$nulls":3},{"v":95,"d":"95 ₺"},{"v":220,"d":"220 ₺"}]
[null,null,"Deniz",null,{"v":20,"d":"20 ₺"},{"v":125,"d":"125 ₺"},{"v":125,"d":"125 ₺"},null,{"v":270,"d":"270 ₺"}]
[null,null,"Anne",{"v":560,"d":"560 ₺"},null,null,{"v":250,"d":"250 ₺"},null,{"v":810,"d":"810 ₺"}]
[null,null,"Grand Total",{"v":685,"d":"685 ₺"},{"v":20,"d":"20 ₺"},{"v":125,"d":"125 ₺"},{"v":375,"d":"375 ₺"},{"v":95,"d":"95 ₺"},{"v":1300,"d":"1,300 ₺"}]
{"$rows_empty":84}
[null,"Tarih","Alıcı","Tür","Tutar"]
[null,"2017-01-01","Baba","Hediyeler",{"v":95,"d":"95 ₺"}]
[null,"2017-01-15","Anne","Yiyecek",{"v":325,"d":"325 ₺"}]
[null,"2017-01-17","Anne","Biletler",{"v":250,"d":"250 ₺"}]
[null,"2017-01-21","Baba","Yiyecek",{"v":125,"d":"125 ₺"}]
[null,"2017-02-02","Anne","Yiyecek",{"v":235,"d":"235 ₺"}]
[null,"2017-02-20","Deniz","Müzik",{"v":20,"d":"20 ₺"}]
[null,"2017-02-25","Deniz","Biletler",{"v":125,"d":"125 ₺"}]
[null,"2017-02-25","Deniz","Spor",{"v":125,"d":"125 ₺"}]

{"sheet":"5","index":5,"n_rows":108,"n_cols":9,"rows_kept":108}
["PivotTable’ı anlaması zorsa şunu deneyin: Soldan, üstten ve ardından alttan okuyun. Aşağıdaki örnekte Baba C12 hücresinde; 125 ₺ doları tutarındaki Yiyecek D12 hücresinde; 95 ₺ doları tutarındaki Hediyeler E12 hücresinde ve 220 ₺ doları tutarındaki Genel Toplam ise I12 hücresindedir. 13 ve 14 satırları, Deniz  veya Anne  ilişkin ayrıntıları ve 15 satırı da Genel Toplam’ı gösterir."]
["Bu öğreticiye devam etmek için CTRL+PAGE DOWN tuşlarına basın. Bir önceki sayfaya girmek için CTRL+PAGE UP tuşlarına basın."]
{"$rows_empty":7}
[null,null,"Toplam Tutar","Tür"]
[null,null,"Alıcı","Yiyecek","Hediyeler","Müzik","Spor","Biletler","Grand Total"]
[null,null,"Baba",{"v":125,"d":"125 ₺"},{"v":95,"d":"95 ₺"},{"$nulls":3},{"v":220,"d":"220 ₺"}]
[null,null,"Deniz",null,null,{"v":20,"d":"20 ₺"},{"v":125,"d":"125 ₺"},{"v":125,"d":"125 ₺"},{"v":270,"d":"270 ₺"}]
[null,null,"Anne",{"v":560,"d":"560 ₺"},{"$nulls":3},{"v":250,"d":"250 ₺"},{"v":810,"d":"810 ₺"}]
[null,null,"Grand Total",{"v":685,"d":"685 ₺"},{"v":95,"d":"95 ₺"},{"v":20,"d":"20 ₺"},{"v":125,"d":"125 ₺"},{"v":375,"d":"375 ₺"},{"v":1300,"d":"1,300 ₺"}]
{"$rows_empty":84}
[null,"Tarih","Alıcı","Tür","Tutar"]
[null,"2017-01-01","Baba","Hediyeler",{"v":95,"d":"95 ₺"}]
[null,"2017-01-15","Anne","Yiyecek",{"v":325,"d":"325 ₺"}]
[null,"2017-01-17","Anne","Biletler",{"v":250,"d":"250 ₺"}]
[null,"2017-01-21","Baba","Yiyecek",{"v":125,"d":"125 ₺"}]
[null,"2017-02-02","Anne","Yiyecek",{"v":235,"d":"235 ₺"}]
[null,"2017-02-20","Deniz","Müzik",{"v":20,"d":"20 ₺"}]
[null,"2017-02-25","Deniz","Biletler",{"v":125,"d":"125 ₺"}]
[null,"2017-02-25","Deniz","Spor",{"v":125,"d":"125 ₺"}]

{"sheet":"6","index":6,"n_rows":3,"n_cols":1,"rows_kept":3}
["Şimdilik bunu yapmayın. Birkaç adım sonra PivotTable ile çalışacaksınız. İlk olarak Sütunlar alanında ayrıntıları oluşturursunuz. Bunu, Tür alanını Sütunlar alanı bölgesine yerleştirerek yaparsınız."]
["Tür alanının Sütunlar bölgesine sürükleneceğini gösteren PivotTable Alanları Listesi resmi."]
["Bu öğreticiye devam etmek için CTRL+PAGE DOWN tuşlarına basın. Bir önceki sayfaya girmek için CTRL+PAGE UP tuşlarına basın."]

{"sheet":"7","index":7,"n_rows":108,"n_cols":8,"rows_kept":108}
["1. Bu örneğe ilişkin PivotTable Alanı, B13 ile C17 arasındaki hücrelerdedir. Bu hücrelerden birine gidin."]
["2. PivotTable Alanları Listesini başlatmak için Press ALT+JZ, L2 tuşlarına basın. Odak, Ara metin kutusunda varsayılan olarak ayarlanır: \"Ara\" düzenleme"]
["3. Tür alanını seçmek için ok tuşlarını kullanın. Seçildikten sonra, Tür alanını Satırlar bölgesine eklemek için ARA ÇUBUĞUNA basın. "]
["4. Tür alanını seçmek için TAB tuşuna basın. Enter tuşuna basın, ardından Sütun Etiketlerine Taşı’yı seçmek için ok tuşlarına basın ve Tür alanını Sütunlar alanına eklemek için Enter tuşuna basın. PivotTable Alanları bölmesinden çıkmak için ALT+JZ+L2 tuşlarına basın."]
["Bu öğreticiye devam etmek için CTRL+PAGE DOWN tuşlarına basın. Bir önceki sayfaya girmek için CTRL+PAGE UP tuşlarına basın."]
[]
[]
[]
[{"$nulls":7},{"$f":"IF(AND($B$14=\"Alıcı\",$H$17=810),\"Tebrikler! İlk sütun alanınızı\",\" \")","v":" "}]
[{"$nulls":7},{"$f":"IF(AND($B$14=\"Alıcı\",$H$17=810),\"yerleştirdiniz. Devam etmek\",\" \")","v":" "}]
[{"$nulls":7},{"$f":"IF(AND($B$14=\"Alıcı\",$H$17=810),\"için Sonraki’ye tıklayın...\",\" \")","v":" "}]
[]
[null,"Alıcı","Toplam Tutar"]
[null,"Baba",{"v":220,"d":"220 ₺"}]
[null,"Deniz",{"v":270,"d":"270 ₺"}]
[null,"Anne",{"v":810,"d":"810 ₺"}]
[null,"Grand Total",{"v":1300,"d":"1,300 ₺"}]
{"$rows_empty":82}
[null,"Tarih","Alıcı","Tür","Tutar"]
[null,"2017-01-01","Baba","Hediyeler",{"v":95,"d":"95 ₺"}]
[null,"2017-01-15","Anne","Yiyecek",{"v":325,"d":"325 ₺"}]
[null,"2017-01-17","Anne","Biletler",{"v":250,"d":"250 ₺"}]
[null,"2017-01-21","Baba","Yiyecek",{"v":125,"d":"125 ₺"}]
[null,"2017-02-02","Anne","Yiyecek",{"v":235,"d":"235 ₺"}]
[null,"2017-02-20","Deniz","Müzik",{"v":20,"d":"20 ₺"}]
[null,"2017-02-25","Deniz","Biletler",{"v":125,"d":"125 ₺"}]
[null,"2017-02-25","Deniz","Spor",{"v":125,"d":"125 ₺"}]

{"sheet":"8","index":8,"n_rows":108,"n_cols":9,"rows_kept":108}
["Şimdi, oluşturduğunuz PivotTable’ı gözden geçirelim. Ancak bu sefer satır, sütun ve değer alanlarını ayırt etmek için bazı özel renkler ekledik."]
["Satır alanı, C10 ile C13 arasındaki hücrelerdedir ve sarı gölgelidir."]
["Sütun alanı, D9 ile H10 arasındaki hücrelerdedir ve turuncu gölgelidir."]
["Değer alanı, D11 ile H13 arasındaki hücrelerdedir ve mavi gölgelidir."]
["Bu öğreticiye devam etmek için CTRL+PAGE DOWN tuşlarına basın. Bir önceki sayfaya girmek için CTRL+PAGE UP tuşlarına basın."]
[]
[]
[]
[null,null,"Toplam Tutar","Tür"]
[null,null,"Alıcı","Yiyecek","Hediyeler","Müzik","Spor","Biletler","Grand Total"]
[null,null,"Baba",{"v":125,"d":"125 ₺"},{"v":95,"d":"95 ₺"},{"$nulls":3},{"v":220,"d":"220 ₺"}]
[null,null,"Deniz",null,null,{"v":20,"d":"20 ₺"},{"v":125,"d":"125 ₺"},{"v":125,"d":"125 ₺"},{"v":270,"d":"270 ₺"}]
[null,null,"Anne",{"v":560,"d":"560 ₺"},{"$nulls":3},{"v":250,"d":"250 ₺"},{"v":810,"d":"810 ₺"}]
[null,null,"Grand Total",{"v":685,"d":"685 ₺"},{"v":95,"d":"95 ₺"},{"v":20,"d":"20 ₺"},{"v":125,"d":"125 ₺"},{"v":375,"d":"375 ₺"},{"v":1300,"d":"1,300 ₺"}]
{"$rows_empty":85}
[null,"Tarih","Alıcı","Tür","Tutar"]
[null,"2017-01-01","Baba","Hediyeler",{"v":95,"d":"95 ₺"}]
[null,"2017-01-15","Anne","Yiyecek",{"v":325,"d":"325 ₺"}]
[null,"2017-01-17","Anne","Biletler",{"v":250,"d":"250 ₺"}]
[null,"2017-01-21","Baba","Yiyecek",{"v":125,"d":"125 ₺"}]
[null,"2017-02-02","Anne","Yiyecek",{"v":235,"d":"235 ₺"}]
[null,"2017-02-20","Deniz","Müzik",{"v":20,"d":"20 ₺"}]
[null,"2017-02-25","Deniz","Biletler",{"v":125,"d":"125 ₺"}]
[null,"2017-02-25","Deniz","Spor",{"v":125,"d":"125 ₺"}]

{"sheet":"9","index":9,"n_rows":3,"n_cols":1,"rows_kept":3}
["İşte bunu düşünmenin bir başka yolu: Satır alanı solda ve sütun alanı üsttedir. Bunların her biri, değer alanına bunları toplayan bir koşul sağlar."]
["Satır alanının sol altta sarı, Sütun alanının sağ üstte turuncu ve Değer alanının sağ altta mavi olarak yer aldığı 4 bölümlü dikdörtgen bir alan gösteren kavramsal resim."]
["Bu öğreticiye devam etmek için CTRL+PAGE DOWN tuşlarına basın. Bir önceki sayfaya girmek için CTRL+PAGE UP tuşlarına basın."]

{"sheet":"10","index":10,"n_rows":3,"n_cols":1,"rows_kept":3}
["Alanlar listesini kullanırken bu şekilde düşünün. Satır alanı solda ve sütun alanı üsttedir. Bunların her biri, değer alanı bunları toplayan bir koşul sağlar."]
["Satır alanının sol altta sarı, Sütun alanının sağ üstte turuncu ve Değer alanının sağ altta mavi olarak yer aldığı PivotTable Alanları listesini gösteren kavramsal resim."]
["Bu öğreticiye devam etmek için CTRL+PAGE DOWN tuşlarına basın. Bir önceki sayfaya girmek için CTRL+PAGE UP tuşlarına basın."]

{"sheet":"11","index":11,"n_rows":121,"n_cols":24,"rows_kept":121}
["Dikkat etmeniz gereken şeylerden birisi şudur: Sütun alanı, PivotTable’a çok sayıda sütun ekliyorsa PivotTable’ın çok geniş olmasına neden olur. "]
["Bu örnekte PivotTable, sütun alanının 20 yeni sütun eklemesiyle birlikte C10 ile X15 arasındaki hücrelerde yer alır. Bu sütun sayısı oldukça fazla! Bu, sayfanın çok fazla kaydırılmasını gerektirir..."]
["Bu öğreticiye devam etmek için CTRL+PAGE DOWN tuşlarına basın. Bir önceki sayfaya girmek için CTRL+PAGE UP tuşlarına basın."]
[]
[]
[]
[]
[]
[]
[null,null,"Toplam Tutar","Tür"]
[null,null,"Alıcı","Akşam Yemeği","Biletler","Diş bakımı","Elektrik","Elektronik eşyalar","Ev sigortası","Kıyafet","Kitaplar","Kulüp aidatları","Müzik","Müzik dersleri","Otomobil sigortası","Otopark","Sağlık","Sağlık sigortası","Spor","Uçak Bileti","Vergiler","Yakıt","Yiyecek","Grand Total"]
[null,null,"Anne",null,null,{"v":235,"d":"235 ₺"},{"v":70,"d":"70 ₺"},null,{"v":235,"d":"235 ₺"},null,null,{"v":125,"d":"125 ₺"},null,null,{"v":74,"d":"74 ₺"},null,{"v":74,"d":"74 ₺"},{"v":70,"d":"70 ₺"},{"$nulls":3},{"v":74,"d":"74 ₺"},{"v":470,"d":"470 ₺"},{"v":1427,"d":"1,427 ₺"}]
[null,null,"Baba",{"$nulls":15},{"v":1000,"d":"1,000 ₺"},{"v":500,"d":"500 ₺"},{"v":500,"d":"500 ₺"},null,null,{"v":2000,"d":"2,000 ₺"}]
[null,null,"Deniz",{"v":20,"d":"20 ₺"},{"v":125,"d":"125 ₺"},null,null,{"v":125,"d":"125 ₺"},null,{"v":125,"d":"125 ₺"},{"v":250,"d":"250 ₺"},null,{"v":20,"d":"20 ₺"},{"v":250,"d":"250 ₺"},null,{"v":20,"d":"20 ₺"},{"$nulls":7},{"v":935,"d":"935 ₺"}]
[null,null,"Grand Total",{"v":20,"d":"20 ₺"},{"v":125,"d":"125 ₺"},{"v":235,"d":"235 ₺"},{"v":70,"d":"70 ₺"},{"v":125,"d":"125 ₺"},{"v":235,"d":"235 ₺"},{"v":125,"d":"125 ₺"},{"v":250,"d":"250 ₺"},{"v":125,"d":"125 ₺"},{"v":20,"d":"20 ₺"},{"v":250,"d":"250 ₺"},{"v":74,"d":"74 ₺"},{"v":20,"d":"20 ₺"},{"v":74,"d":"74 ₺"},{"v":70,"d":"70 ₺"},{"v":1000,"d":"1,000 ₺"},{"v":500,"d":"500 ₺"},{"v":500,"d":"500 ₺"},{"v":74,"d":"74 ₺"},{"v":470,"d":"470 ₺"},{"v":4362,"d":"4,362 ₺"}]
{"$rows_empty":84}
[null,"Tarih","Alıcı","Tür","Tutar"]
[null,"2017-01-17","Baba","Spor",{"v":1000,"d":"1,000 ₺"}]
[null,"2017-01-17","Baba","Uçak Bileti",{"v":500,"d":"500 ₺"}]
[null,"2017-01-17","Baba","Vergiler",{"v":500,"d":"500 ₺"}]
[null,"2017-02-20","Deniz","Müzik",{"v":20,"d":"20 ₺"}]
[null,"2017-02-25","Deniz","Biletler",{"v":125,"d":"125 ₺"}]
[null,"2017-01-21","Deniz","Kitaplar",{"v":250,"d":"250 ₺"}]
[null,"2017-02-20","Deniz","Akşam Yemeği",{"v":20,"d":"20 ₺"}]
[null,"2017-02-25","Deniz","Kıyafet",{"v":125,"d":"125 ₺"}]
[null,"2017-01-21","Deniz","Müzik dersleri",{"v":250,"d":"250 ₺"}]
[null,"2017-02-20","Deniz","Otopark",{"v":20,"d":"20 ₺"}]
[null,"2017-02-25","Deniz","Elektronik eşyalar",{"v":125,"d":"125 ₺"}]
[null,"2017-01-01","Anne","Yakıt",{"v":74,"d":"74 ₺"}]
[null,"2017-01-15","Anne","Yiyecek",{"v":235,"d":"235 ₺"}]
[null,"2017-01-21","Anne","Kulüp aidatları",{"v":125,"d":"125 ₺"}]
[null,"2017-02-02","Anne","Yiyecek",{"v":235,"d":"235 ₺"}]
[null,"2017-01-01","Anne","Sağlık",{"v":74,"d":"74 ₺"}]
[null,"2017-01-15","Anne","Elektrik",{"v":70,"d":"70 ₺"}]
[null,"2017-02-02","Anne","Diş bakımı",{"v":235,"d":"235 ₺"}]
[null,"2017-01-01","Anne","Otomobil sigortası",{"v":74,"d":"74 ₺"}]
[null,"2017-01-15","Anne","Sağlık sigortası",{"v":70,"d":"70 ₺"}]
[null,"2017-02-02","Anne","Ev sigortası",{"v":235,"d":"235 ₺"}]

{"sheet":"12","index":12,"n_rows":119,"n_cols":5,"rows_kept":119}
["Çok geniş PivotTable’lar oluşturmaktan başka bir alternatif vardır: ikinci satır alanı kullanmak. İlk satır alanı altında girintili bir şekilde ikinci satır alanı gösterilir."]
["Bu örnekte, D8 ile E32 hücreleri arasında bir PivotTable yer almaktadır... Tablo Baba, Deniz ve Anne’yi D sütununda ilk satır alanı olarak gösterir. Ardından harcama türleri, ikinci satır alanı olarak Spor, Uçak Bileti, Akşam Yemeği gibi öğelerle bunun altında yer alır."]
["YARARLI BİLGİLER\nİkinci satır alanı, yatay yerine dikey yönlü bir PivotTable oluşturur. Bazı kişiler, yanlamasına kaydırmayı çok gerektirmediğinden dikey PivotTable’ların daha kolay okunduğunu düşünür."]
["EXCEL JARGONU\nBazen ikinci satır alanı, “ikincil satır alanı” olarak adlandırılır."]
["Bu öğreticiye devam etmek için CTRL+PAGE DOWN tuşlarına basın. Bir önceki sayfaya girmek için CTRL+PAGE UP tuşlarına basın."]
[]
[]
[{"$nulls":3},"Row Labels","Toplam Tutar"]
[{"$nulls":3},"Baba",{"v":2000,"d":"2,000 ₺"}]
[{"$nulls":3},"Spor",{"v":1000,"d":"1,000 ₺"}]
[{"$nulls":3},"Vergiler",{"v":500,"d":"500 ₺"}]
[{"$nulls":3},"Uçak Bileti",{"v":500,"d":"500 ₺"}]
[{"$nulls":3},"Deniz",{"v":935,"d":"935 ₺"}]
[{"$nulls":3},"Kitaplar",{"v":250,"d":"250 ₺"}]
[{"$nulls":3},"Müzik",{"v":20,"d":"20 ₺"}]
[{"$nulls":3},"Biletler",{"v":125,"d":"125 ₺"}]
[{"$nulls":3},"Akşam Yemeği",{"v":20,"d":"20 ₺"}]
[{"$nulls":3},"Otopark",{"v":20,"d":"20 ₺"}]
[{"$nulls":3},"Elektronik eşyalar",{"v":125,"d":"125 ₺"}]
[{"$nulls":3},"Kıyafet",{"v":125,"d":"125 ₺"}]
[{"$nulls":3},"Müzik dersleri",{"v":250,"d":"250 ₺"}]
[{"$nulls":3},"Anne",{"v":1427,"d":"1,427 ₺"}]
[{"$nulls":3},"Yiyecek",{"v":470,"d":"470 ₺"}]
[{"$nulls":3},"Yakıt",{"v":74,"d":"74 ₺"}]
[{"$nulls":3},"Elektrik",{"v":70,"d":"70 ₺"}]
[{"$nulls":3},"Sağlık",{"v":74,"d":"74 ₺"}]
[{"$nulls":3},"Diş bakımı",{"v":235,"d":"235 ₺"}]
[{"$nulls":3},"Otomobil sigortası",{"v":74,"d":"74 ₺"}]
[{"$nulls":3},"Kulüp aidatları",{"v":125,"d":"125 ₺"}]
[{"$nulls":3},"Sağlık sigortası",{"v":70,"d":"70 ₺"}]
[{"$nulls":3},"Ev sigortası",{"v":235,"d":"235 ₺"}]
[{"$nulls":3},"Grand Total",{"v":4362,"d":"4,362 ₺"}]
{"$rows_empty":65}
[null,"Tarih","Alıcı","Tür","Tutar"]
[null,"2017-01-17","Baba","Spor",{"v":1000,"d":"1,000 ₺"}]
[null,"2017-01-17","Baba","Uçak Bileti",{"v":500,"d":"500 ₺"}]
[null,"2017-01-17","Baba","Vergiler",{"v":500,"d":"500 ₺"}]
[null,"2017-02-20","Deniz","Müzik",{"v":20,"d":"20 ₺"}]
[null,"2017-02-25","Deniz","Biletler",{"v":125,"d":"125 ₺"}]
[null,"2017-01-21","Deniz","Kitaplar",{"v":250,"d":"250 ₺"}]
[null,"2017-02-20","Deniz","Akşam Yemeği",{"v":20,"d":"20 ₺"}]
[null,"2017-02-25","Deniz","Kıyafet",{"v":125,"d":"125 ₺"}]
[null,"2017-01-21","Deniz","Müzik dersleri",{"v":250,"d":"250 ₺"}]
[null,"2017-02-20","Deniz","Otopark",{"v":20,"d":"20 ₺"}]
[null,"2017-02-25","Deniz","Elektronik eşyalar",{"v":125,"d":"125 ₺"}]
[null,"2017-01-01","Anne","Yakıt",{"v":74,"d":"74 ₺"}]
[null,"2017-01-15","Anne","Yiyecek",{"v":235,"d":"235 ₺"}]
[null,"2017-01-21","Anne","Kulüp aidatları",{"v":125,"d":"125 ₺"}]
[null,"2017-02-02","Anne","Yiyecek",{"v":235,"d":"235 ₺"}]
[null,"2017-01-01","Anne","Sağlık",{"v":74,"d":"74 ₺"}]
[null,"2017-01-15","Anne","Elektrik",{"v":70,"d":"70 ₺"}]
[null,"2017-02-02","Anne","Diş bakımı",{"v":235,"d":"235 ₺"}]
[null,"2017-01-01","Anne","Otomobil sigortası",{"v":74,"d":"74 ₺"}]
[null,"2017-01-15","Anne","Sağlık sigortası",{"v":70,"d":"70 ₺"}]
[null,"2017-02-02","Anne","Ev sigortası",{"v":235,"d":"235 ₺"}]

{"sheet":"13","index":13,"n_rows":3,"n_cols":1,"rows_kept":3}
["Sonraki sayfada ikinci bir satır alanı ekleyeceksiniz. Bunu, Tür alanını Satırlar alanındaki Alıcı alanının altına yerleştirerek yaparsınız."]
["Tür alanını Satırlar bölgesine sürükleneceğini gösteren PivotTable Alanları Listesi resmi."]
["Bu öğreticiye devam etmek için CTRL+PAGE DOWN tuşlarına basın. Bir önceki sayfaya girmek için CTRL+PAGE UP tuşlarına basın."]

{"sheet":"14","index":14,"n_rows":122,"n_cols":9,"rows_kept":122}
["1. Bu örneğe ilişkin PivotTable Alanı, B13 ile C17 arasındaki hücrelerdedir. Bu hücrelerden birine gidin. "]
["2. PivotTable Alanları Listesini başlatmak için Press ALT+JZ, L2 tuşlarına basın. Odak varsayılan olarak Ara metin kutusuna geçer: “Aranacak sözcükleri yazın” düzenlenir. Hiçbir şey yazmadan bir kez Sekme tuşuna basın. NOT: Alan Listesi başlamazsa ALT+JZ, L2 tuşlarına tekrar basın."]
["3. Ok tuşlarını kullanarak Tür alanına gidin. Tür alanını Satırlar bölgesine eklemek için ARA ÇUBUĞUNA basın. "]
["4. PivotTable Alanları bölmesinden çıkmak için ESC tuşuna basın. "]
["Bu öğreticiye devam etmek için CTRL+PAGE DOWN tuşlarına basın. Bir önceki sayfaya girmek için CTRL+PAGE UP tuşlarına basın.",{"$nulls":7},{"$f":"IF(AND($B$15=\"Spor\",$C$36=470),\"İyi gidiyorsunuz! PivotTable’a\",\" \")","v":" "}]
[{"$nulls":8},{"$f":"IF(AND($B$15=\"Spor\",$C$36=470),\"ikinci bir satır alanı\",\" \")","v":" "}]
[{"$nulls":8},{"$f":"IF(AND($B$15=\"Spor\",$C$36=470),\"ieklediniz. Aşağı kaydırın ve\",\" \")","v":" "}]
[{"$nulls":8},{"$f":"IF(AND($B$15=\"Spor\",$C$36=470),\"Sonraki’ye tıklayın...\",\" \")","v":" "}]
[]
[]
[]
[]
[null,"Row Labels","Toplam Tutar"]
[null,"Baba",{"v":2000,"d":"2,000 ₺"}]
[null,"Deniz",{"v":935,"d":"935 ₺"}]
[null,"Anne",{"v":1427,"d":"1,427 ₺"}]
[null,"Grand Total",{"v":4362,"d":"4,362 ₺"}]
{"$rows_empty":83}
[null,"Tarih","Alıcı","Tür","Tutar"]
[null,"2017-01-17","Baba","Spor",{"v":1000,"d":"1,000 ₺"}]
[null,"2017-01-17","Baba","Uçak Bileti",{"v":500,"d":"500 ₺"}]
[null,"2017-01-17","Baba","Vergiler",{"v":500,"d":"500 ₺"}]
[null,"2017-02-20","Deniz","Müzik",{"v":20,"d":"20 ₺"}]
[null,"2017-02-25","Deniz","Biletler",{"v":125,"d":"125 ₺"}]
[null,"2017-01-21","Deniz","Kitaplar",{"v":250,"d":"250 ₺"}]
[null,"2017-02-20","Deniz","Akşam Yemeği",{"v":20,"d":"20 ₺"}]
[null,"2017-02-25","Deniz","Kıyafet",{"v":125,"d":"125 ₺"}]
[null,"2017-01-21","Deniz","Müzik dersleri",{"v":250,"d":"250 ₺"}]
[null,"2017-02-20","Deniz","Otopark",{"v":20,"d":"20 ₺"}]
[null,"2017-02-25","Deniz","Elektronik eşyalar",{"v":125,"d":"125 ₺"}]
[null,"2017-01-01","Anne","Yakıt",{"v":74,"d":"74 ₺"}]
[null,"2017-01-15","Anne","Yiyecek",{"v":235,"d":"235 ₺"}]
[null,"2017-01-21","Anne","Kulüp aidatları",{"v":125,"d":"125 ₺"}]
[null,"2017-02-02","Anne","Yiyecek",{"v":235,"d":"235 ₺"}]
[null,"2017-01-01","Anne","Sağlık",{"v":74,"d":"74 ₺"}]
[null,"2017-01-15","Anne","Elektrik",{"v":70,"d":"70 ₺"}]
[null,"2017-02-02","Anne","Diş bakımı",{"v":235,"d":"235 ₺"}]
[null,"2017-01-01","Anne","Otomobil sigortası",{"v":74,"d":"74 ₺"}]
[null,"2017-01-15","Anne","Sağlık sigortası",{"v":70,"d":"70 ₺"}]
[null,"2017-02-02","Anne","Ev sigortası",{"v":235,"d":"235 ₺"}]

{"sheet":"15","index":15,"n_rows":121,"n_cols":7,"rows_kept":121}
["PivotTable’ı basitleştirmeniz gerekiyorsa ikinci satır alanındaki verileri “yukarı” doğru daraltıp ortadan kaldırabilirsiniz. "]
["Bu örneğe ilişkin PivotTable, F7 ile G31 arasındaki hücrelerdedir. Baba için ilk satır alanını seçmek üzere F8 hücresini seçin. Ardından, ikinci alanı genişletmek için Alt+JZ > L1 tuşlarına veya daraltmak için A tuşuna basın."]
["Bu öğreticiye devam etmek için CTRL+PAGE DOWN tuşlarına basın. Bir önceki sayfaya girmek için CTRL+PAGE UP tuşlarına basın."]
[]
[]
[{"$nulls":5},{"$f":"IF(AND($F$9=\"Deniz\",$G$9=935),\"Harika!\",\" \")","v":" "}]
[{"$nulls":5},"Row Labels","Toplam Tutar"]
[{"$nulls":5},"Baba",{"v":2000,"d":"$2,000"}]
[{"$nulls":5},"Spor",{"v":1000,"d":"$1,000"}]
[{"$nulls":5},"Vergiler",{"v":500,"d":"$500"}]
[{"$nulls":5},"Uçak Bileti",{"v":500,"d":"$500"}]
[{"$nulls":5},"Deniz",{"v":935,"d":"$935"}]
[{"$nulls":5},"Kitaplar",{"v":250,"d":"$250"}]
[{"$nulls":5},"Akşam Yemeği",{"v":20,"d":"$20"}]
[{"$nulls":5},"Elektronik eşyalar",{"v":125,"d":"$125"}]
[{"$nulls":5},"Müzik",{"v":20,"d":"$20"}]
[{"$nulls":5},"Otopark",{"v":20,"d":"$20"}]
[{"$nulls":5},"Biletler",{"v":125,"d":"$125"}]
[{"$nulls":5},"Kıyafet",{"v":125,"d":"$125"}]
[{"$nulls":5},"Müzik dersleri",{"v":250,"d":"$250"}]
[{"$nulls":5},"Anne",{"v":1427,"d":"$1,427"}]
[{"$nulls":5},"Otomobil sigortası",{"v":74,"d":"$74"}]
[{"$nulls":5},"Diş bakımı",{"v":235,"d":"$235"}]
[{"$nulls":5},"Elektrik",{"v":70,"d":"$70"}]
[{"$nulls":5},"Yiyecek",{"v":470,"d":"$470"}]
[{"$nulls":5},"Yakıt",{"v":74,"d":"$74"}]
[{"$nulls":5},"Sağlık",{"v":74,"d":"$74"}]
[{"$nulls":5},"Kulüp aidatları",{"v":125,"d":"$125"}]
[{"$nulls":5},"Sağlık sigortası",{"v":70,"d":"$70"}]
[{"$nulls":5},"Ev sigortası",{"v":235,"d":"$235"}]
[{"$nulls":5},"Grand Total",{"v":4362,"d":"4,362 ₺"}]
{"$rows_empty":68}
[null,"Tarih","Alıcı","Tür","Tutar"]
[null,"2017-01-17","Baba","Spor",{"v":1000,"d":"1,000 ₺"}]
[null,"2017-01-17","Baba","Uçak Bileti",{"v":500,"d":"500 ₺"}]
[null,"2017-01-17","Baba","Vergiler",{"v":500,"d":"500 ₺"}]
[null,"2017-02-20","Deniz","Müzik",{"v":20,"d":"20 ₺"}]
[null,"2017-02-25","Deniz","Biletler",{"v":125,"d":"125 ₺"}]
[null,"2017-01-21","Deniz","Kitaplar",{"v":250,"d":"250 ₺"}]
[null,"2017-02-20","Deniz","Akşam Yemeği",{"v":20,"d":"20 ₺"}]
[null,"2017-02-25","Deniz","Kıyafet",{"v":125,"d":"125 ₺"}]
[null,"2017-01-21","Deniz","Müzik dersleri",{"v":250,"d":"250 ₺"}]
[null,"2017-02-20","Deniz","Otopark",{"v":20,"d":"20 ₺"}]
[null,"2017-02-25","Deniz","Elektronik eşyalar",{"v":125,"d":"125 ₺"}]
[null,"2017-01-01","Anne","Yakıt",{"v":74,"d":"74 ₺"}]
[null,"2017-01-15","Anne","Yiyecek",{"v":235,"d":"235 ₺"}]
[null,"2017-01-21","Anne","Kulüp aidatları",{"v":125,"d":"125 ₺"}]
[null,"2017-02-02","Anne","Yiyecek",{"v":235,"d":"235 ₺"}]
[null,"2017-01-01","Anne","Sağlık",{"v":74,"d":"74 ₺"}]
[null,"2017-01-15","Anne","Elektrik",{"v":70,"d":"70 ₺"}]
[null,"2017-02-02","Anne","Diş bakımı",{"v":235,"d":"235 ₺"}]
[null,"2017-01-01","Anne","Otomobil sigortası",{"v":74,"d":"74 ₺"}]
[null,"2017-01-15","Anne","Sağlık sigortası",{"v":70,"d":"70 ₺"}]
[null,"2017-02-02","Anne","Ev sigortası",{"v":235,"d":"235 ₺"}]

{"sheet":"16","index":16,"n_rows":121,"n_cols":7,"rows_kept":121}
["PivotTable’ı daha da basitleştirmek için ikinci satır alanının tamamını daraltabilir veya genişletebilirsiniz."]
["Püf Noktası Şudur"]
["F7 ile G31 arasındaki hücreleri kapsayan PivotTable veri aralığını seçin ve sonra tüm grubu daraltmak için ALT+JZ > A tuşlarına basın. Bununla birlikte, ALT+JZ > L1 tuşlarına bastığınızda tüm grup genişletilir."]
["Bu öğreticiye devam etmek için CTRL+PAGE DOWN tuşlarına basın. Bir önceki sayfaya girmek için CTRL+PAGE UP tuşlarına basın."]
[]
[{"$nulls":5},{"$f":"IF(AND($F$9=\"Deniz\",$G$9=935),\"İşte bu!\",\" \")","v":" "}]
[{"$nulls":5},"Row Labels","Toplam Tutar"]
[{"$nulls":5},"Baba",{"v":2000,"d":"2,000 ₺"}]
[{"$nulls":5},"Spor",{"v":1000,"d":"1,000 ₺"}]
[{"$nulls":5},"Vergiler",{"v":500,"d":"500 ₺"}]
[{"$nulls":5},"Uçak Bileti",{"v":500,"d":"500 ₺"}]
[{"$nulls":5},"Deniz",{"v":935,"d":"935 ₺"}]
[{"$nulls":5},"Kitaplar",{"v":250,"d":"250 ₺"}]
[{"$nulls":5},"Akşam Yemeği",{"v":20,"d":"20 ₺"}]
[{"$nulls":5},"Elektronik eşyalar",{"v":125,"d":"125 ₺"}]
[{"$nulls":5},"Müzik",{"v":20,"d":"20 ₺"}]
[{"$nulls":5},"Otopark",{"v":20,"d":"20 ₺"}]
[{"$nulls":5},"Biletler",{"v":125,"d":"125 ₺"}]
[{"$nulls":5},"Kıyafet",{"v":125,"d":"125 ₺"}]
[{"$nulls":5},"Müzik dersleri",{"v":250,"d":"250 ₺"}]
[{"$nulls":5},"Anne",{"v":1427,"d":"1,427 ₺"}]
[{"$nulls":5},"Otomobil sigortası",{"v":74,"d":"74 ₺"}]
[{"$nulls":5},"Diş bakımı",{"v":235,"d":"235 ₺"}]
[{"$nulls":5},"Elektrik",{"v":70,"d":"70 ₺"}]
[{"$nulls":5},"Yiyecek",{"v":470,"d":"470 ₺"}]
[{"$nulls":5},"Yakıt",{"v":74,"d":"74 ₺"}]
[{"$nulls":5},"Sağlık",{"v":74,"d":"74 ₺"}]
[{"$nulls":5},"Kulüp aidatları",{"v":125,"d":"125 ₺"}]
[{"$nulls":5},"Sağlık sigortası",{"v":70,"d":"70 ₺"}]
[{"$nulls":5},"Ev sigortası",{"v":235,"d":"235 ₺"}]
[{"$nulls":5},"Grand Total",{"v":4362,"d":"4,362 ₺"}]
{"$rows_empty":68}
[null,"Tarih","Alıcı","Tür","Tutar"]
[null,"2017-01-17","Baba","Spor",{"v":1000,"d":"1,000 ₺"}]
[null,"2017-01-17","Baba","Uçak Bileti",{"v":500,"d":"500 ₺"}]
[null,"2017-01-17","Baba","Vergiler",{"v":500,"d":"500 ₺"}]
[null,"2017-02-20","Deniz","Müzik",{"v":20,"d":"20 ₺"}]
[null,"2017-02-25","Deniz","Biletler",{"v":125,"d":"125 ₺"}]
[null,"2017-01-21","Deniz","Kitaplar",{"v":250,"d":"250 ₺"}]
[null,"2017-02-20","Deniz","Akşam Yemeği",{"v":20,"d":"20 ₺"}]
[null,"2017-02-25","Deniz","Kıyafet",{"v":125,"d":"125 ₺"}]
[null,"2017-01-21","Deniz","Müzik dersleri",{"v":250,"d":"250 ₺"}]
[null,"2017-02-20","Deniz","Otopark",{"v":20,"d":"20 ₺"}]
[null,"2017-02-25","Deniz","Elektronik eşyalar",{"v":125,"d":"125 ₺"}]
[null,"2017-01-01","Anne","Yakıt",{"v":74,"d":"74 ₺"}]
[null,"2017-01-15","Anne","Yiyecek",{"v":235,"d":"235 ₺"}]
[null,"2017-01-21","Anne","Kulüp aidatları",{"v":125,"d":"125 ₺"}]
[null,"2017-02-02","Anne","Yiyecek",{"v":235,"d":"235 ₺"}]
[null,"2017-01-01","Anne","Sağlık",{"v":74,"d":"74 ₺"}]
[null,"2017-01-15","Anne","Elektrik",{"v":70,"d":"70 ₺"}]
[null,"2017-02-02","Anne","Diş bakımı",{"v":235,"d":"235 ₺"}]
[null,"2017-01-01","Anne","Otomobil sigortası",{"v":74,"d":"74 ₺"}]
[null,"2017-01-15","Anne","Sağlık sigortası",{"v":70,"d":"70 ₺"}]
[null,"2017-02-02","Anne","Ev sigortası",{"v":235,"d":"235 ₺"}]

{"sheet":"17","index":17,"n_rows":107,"n_cols":13,"rows_kept":107}
["Ayrıca birden fazla sütun alanı ekleyebilirsiniz. Bunlar da daraltılabilir veya genişletilebilir."]
["Bu örnekteki PivotTable, B13 ile M19 arasındaki hücrelerdedir. Bu örnekte, Sütunlar bölümünde Yiyecek ve Faturalar öğelerini içeren Tür kategorisi bulunmaktadır."]
["ŞUNU DENEYİN\nC14 hücresinde Yiyecek öğesini seçin ve tüm alanı daraltmak için ALT+JZ > A tuşlarına basın. ALT+JZ > L1 tuşlarına bastığınızda alan genişletilir."]
["Bu öğreticiye devam etmek için CTRL+PAGE DOWN tuşlarına basın. Bir önceki sayfaya girmek için CTRL+PAGE UP tuşlarına basın."]
{"$rows_empty":7}
[null,null,{"$f":"IF(AND($C$16=398,$D$15=\"Oca\"),\"Aferin!\",\" \")","v":" "}]
[null,"Toplam Tutar","Column Labels"]
[null,null,"Yiyecek",{"$nulls":3},"Yiyecek Total","Faturalar",{"$nulls":3},"Faturalar Total","Grand Total"]
[null,"Row Labels","Oca","Şub","Mar","Nis",null,"Oca","Şub","Mar","Nis"]
[null,"Deniz",{"v":74,"d":"74 ₺"},{"v":74,"d":"74 ₺"},{"v":125,"d":"125 ₺"},{"v":125,"d":"125 ₺"},{"v":398,"d":"398 ₺"},{"$nulls":5},{"v":398,"d":"398 ₺"}]
[null,"Baba",{"v":235,"d":"235 ₺"},{"v":235,"d":"235 ₺"},{"v":235,"d":"235 ₺"},{"v":74,"d":"74 ₺"},{"v":779,"d":"779 ₺"},{"$nulls":5},{"v":779,"d":"779 ₺"}]
[null,"Anne",{"$nulls":5},{"v":1000,"d":"1,000 ₺"},{"v":1000,"d":"1,000 ₺"},{"v":20,"d":"20 ₺"},{"v":70,"d":"70 ₺"},{"v":2090,"d":"2,090 ₺"},{"v":2090,"d":"2,090 ₺"}]
[null,"Grand Total",{"v":309,"d":"309 ₺"},{"v":309,"d":"309 ₺"},{"v":360,"d":"360 ₺"},{"v":199,"d":"199 ₺"},{"v":1177,"d":"1,177 ₺"},{"v":1000,"d":"1,000 ₺"},{"v":1000,"d":"1,000 ₺"},{"v":20,"d":"20 ₺"},{"v":70,"d":"70 ₺"},{"v":2090,"d":"2,090 ₺"},{"v":3267,"d":"3,267 ₺"}]
{"$rows_empty":75}
[null,"Ay","Alıcı","Tür","Tutar"]
[null,"Oca","Deniz","Yiyecek",{"v":74,"d":"74 ₺"}]
[null,"Oca","Baba","Yiyecek",{"v":235,"d":"235 ₺"}]
[null,"Oca","Anne","Faturalar",{"v":1000,"d":"1,000 ₺"}]
[null,"Şub","Deniz","Yiyecek",{"v":74,"d":"74 ₺"}]
[null,"Şub","Baba","Yiyecek",{"v":235,"d":"235 ₺"}]
[null,"Şub","Anne","Faturalar",{"v":1000,"d":"1,000 ₺"}]
[null,"Mar","Deniz","Yiyecek",{"v":125,"d":"125 ₺"}]
[null,"Mar","Baba","Yiyecek",{"v":235,"d":"235 ₺"}]
[null,"Mar","Anne","Faturalar",{"v":20,"d":"20 ₺"}]
[null,"Nis","Deniz","Yiyecek",{"v":125,"d":"125 ₺"}]
[null,"Nis","Baba","Yiyecek",{"v":74,"d":"74 ₺"}]
[null,"Nis","Anne","Faturalar",{"v":70,"d":"70 ₺"}]

{"sheet":"18","index":18,"n_rows":146,"n_cols":5,"rows_kept":146}
["Unutmayın: Daha fazla ayrıntıya ihtiyacınız varsa daha fazla satır veya sütun alanı ekleyebilirsiniz. Bu örnekte üç satır alanı vardır."]
["Bu örnekteki PivotTable, D8 ile E29 arasındaki hücrelerde yer alır ve D sütununda Mevsim, Alıcı ve Tür alanları ve E sütununda da Toplam Tutar alanı yer alır."]
["UZMAN İPUCU\nÇok sayıda alan ekleyebilseniz de bunu yapmanız her zaman gerekli değildir. Bu örnekte sorun oluşmamıştır. Ancak bazen çok fazla alan eklediğinizde PivotTable, alanların girintileri nedeniyle  başkaları tarafından anlaşılmayacak kadar karmaşık hale gelir. "]
["Bu öğreticiye devam etmek için CTRL+PAGE DOWN tuşlarına basın. Bir önceki sayfaya girmek için CTRL+PAGE UP tuşlarına basın."]
[]
[]
[]
[{"$nulls":3},"Row Labels","Toplam Tutar"]
[{"$nulls":3},"Sonbahar",{"v":5425,"d":"5,425 ₺"}]
[{"$nulls":3},"Anne",{"v":5425,"d":"5,425 ₺"}]
[{"$nulls":3},"Sigorta",{"v":1272,"d":"1,272 ₺"}]
[{"$nulls":3},"Kira",{"v":3220,"d":"3,220 ₺"}]
[{"$nulls":3},"Faturalar",{"v":933,"d":"933 ₺"}]
[{"$nulls":3},"İlkbahar",{"v":4760,"d":"4,760 ₺"}]
[{"$nulls":3},"Baba",{"v":4760,"d":"4,760 ₺"}]
[{"$nulls":3},"Sigorta",{"v":1040,"d":"1,040 ₺"}]
[{"$nulls":3},"Kira",{"v":2400,"d":"2,400 ₺"}]
[{"$nulls":3},"Faturalar",{"v":1320,"d":"1,320 ₺"}]
[{"$nulls":3},"Yaz",{"v":3473,"d":"3,473 ₺"}]
[{"$nulls":3},"Anne",{"v":3473,"d":"3,473 ₺"}]
[{"$nulls":3},"Sigorta",{"v":1080,"d":"1,080 ₺"}]
[{"$nulls":3},"Kira",{"v":1260,"d":"1,260 ₺"}]
[{"$nulls":3},"Faturalar",{"v":1133,"d":"1,133 ₺"}]
[{"$nulls":3},"Kış",{"v":4100,"d":"4,100 ₺"}]
[{"$nulls":3},"Baba",{"v":4100,"d":"4,100 ₺"}]
[{"$nulls":3},"Sigorta",{"v":1030,"d":"1,030 ₺"}]
[{"$nulls":3},"Kira",{"v":1420,"d":"1,420 ₺"}]
[{"$nulls":3},"Faturalar",{"v":1650,"d":"1,650 ₺"}]
[{"$nulls":3},"Grand Total",{"v":17758,"d":"17,758 ₺"}]
{"$rows_empty":68}
[null,"Alıcı","Mevsim","Tür","Tutar"]
[null,"Baba","Kış","Sigorta",{"v":300,"d":"300 ₺"}]
[null,"Baba","Kış","Kira",{"v":200,"d":"200 ₺"}]
[null,"Baba","Kış","Faturalar",{"v":400,"d":"400 ₺"}]
[null,"Baba","Kış","Sigorta",{"v":300,"d":"300 ₺"}]
[null,"Baba","Kış","Kira",{"v":800,"d":"800 ₺"}]
[null,"Baba","Kış","Faturalar",{"v":400,"d":"400 ₺"}]
[null,"Baba","Kış","Sigorta",{"v":200,"d":"200 ₺"}]
[null,"Baba","Kış","Kira",{"v":300,"d":"300 ₺"}]
[null,"Baba","Kış","Faturalar",{"v":450,"d":"450 ₺"}]
[null,"Baba","Kış","Sigorta",{"v":230,"d":"230 ₺"}]
[null,"Baba","Kış","Kira",{"v":120,"d":"120 ₺"}]
[null,"Baba","Kış","Faturalar",{"v":400,"d":"400 ₺"}]
[null,"Baba","İlkbahar","Sigorta",{"v":210,"d":"210 ₺"}]
[null,"Baba","İlkbahar","Kira",{"v":300,"d":"300 ₺"}]
[null,"Baba","İlkbahar","Faturalar",{"v":400,"d":"400 ₺"}]
[null,"Baba","İlkbahar","Sigorta",{"v":230,"d":"230 ₺"}]
[null,"Baba","İlkbahar","Kira",{"v":900,"d":"900 ₺"}]
[null,"Baba","İlkbahar","Faturalar",{"v":300,"d":"300 ₺"}]
[null,"Baba","İlkbahar","Sigorta",{"v":200,"d":"200 ₺"}]
[null,"Baba","İlkbahar","Kira",{"v":1000,"d":"1,000 ₺"}]
[null,"Baba","İlkbahar","Faturalar",{"v":220,"d":"220 ₺"}]
[null,"Baba","İlkbahar","Sigorta",{"v":400,"d":"400 ₺"}]
[null,"Baba","İlkbahar","Kira",{"v":200,"d":"200 ₺"}]
[null,"Baba","İlkbahar","Faturalar",{"v":400,"d":"400 ₺"}]
[null,"Anne","Yaz","Sigorta",{"v":100,"d":"100 ₺"}]
[null,"Anne","Yaz","Kira",{"v":30,"d":"30 ₺"}]
[null,"Anne","Yaz","Faturalar",{"v":123,"d":"123 ₺"}]
[null,"Anne","Yaz","Sigorta",{"v":300,"d":"300 ₺"}]
[null,"Anne","Yaz","Kira",{"v":350,"d":"350 ₺"}]
[null,"Anne","Yaz","Faturalar",{"v":230,"d":"230 ₺"}]
[null,"Anne","Yaz","Sigorta",{"v":120,"d":"120 ₺"}]
[null,"Anne","Yaz","Kira",{"v":640,"d":"640 ₺"}]
[null,"Anne","Yaz","Faturalar",{"v":530,"d":"530 ₺"}]
[null,"Anne","Yaz","Sigorta",{"v":560,"d":"560 ₺"}]
[null,"Anne","Yaz","Kira",{"v":240,"d":"240 ₺"}]
[null,"Anne","Yaz","Faturalar",{"v":250,"d":"250 ₺"}]
[null,"Anne","Sonbahar","Sigorta",{"v":62,"d":"62 ₺"}]
[null,"Anne","Sonbahar","Kira",{"v":600,"d":"600 ₺"}]
[null,"Anne","Sonbahar","Faturalar",{"v":340,"d":"340 ₺"}]
[null,"Anne","Sonbahar","Sigorta",{"v":205,"d":"205 ₺"}]
[null,"Anne","Sonbahar","Kira",{"v":500,"d":"500 ₺"}]
[null,"Anne","Sonbahar","Faturalar",{"v":403,"d":"403 ₺"}]
[null,"Anne","Sonbahar","Sigorta",{"v":503,"d":"503 ₺"}]
[null,"Anne","Sonbahar","Kira",{"v":2000,"d":"2,000 ₺"}]
[null,"Anne","Sonbahar","Faturalar",{"v":140,"d":"140 ₺"}]
[null,"Anne","Sonbahar","Sigorta",{"v":502,"d":"502 ₺"}]
[null,"Anne","Sonbahar","Kira",{"v":120,"d":"120 ₺"}]
[null,"Anne","Sonbahar","Faturalar",{"v":50,"d":"50 ₺"}]

{"sheet":"19","index":19,"n_rows":55,"n_cols":5,"rows_kept":55}
["Daha fazla alıştırma için hazır mısınız? Aşağıdaki B7 ile E55 arasındaki hücrelerde yer alan verileri gözden geçirin. Hazır olduğunuzda sonraki sayfaya gidin ve şimdiye kadar öğrendiklerinizin alıştırmasını yapın. "]
["Tüm veri satırlarını gözden geçirmenize gerek yoktur. Satır 7’deki alan adlarını gözden geçirmeniz yeterlidir. Sonraki sayfada bunlar üzerinde çalışacaksınız. "]
["Bu öğreticiye devam etmek için CTRL+PAGE DOWN tuşlarına basın. Bir önceki sayfaya girmek için CTRL+PAGE UP tuşlarına basın."]
[]
[]
[]
[null,"Mevsim","Satış temsilcisi","Ürün","Satılan birim"]
[null,"Kış","Deniz","Portakal",300]
[null,"Kış","İbrahim","Greyfurt",200]
[null,"Kış","Engin","Elma",400]
[null,"Kış","Deniz","Muz",300]
[null,"Kış","İbrahim","Portakal",800]
[null,"Kış","Engin","Greyfurt",400]
[null,"Kış","Deniz","Elma",200]
[null,"Kış","İbrahim","Muz",300]
[null,"Kış","Engin","Portakal",450]
[null,"Kış","Deniz","Greyfurt",230]
[null,"Kış","İbrahim","Elma",120]
[null,"Kış","Engin","Muz",400]
[null,"İlkbahar","Deniz","Pancar",210]
[null,"İlkbahar","İbrahim","Patates",300]
[null,"İlkbahar","Engin","Marul",400]
[null,"İlkbahar","Deniz","Turp",230]
[null,"İlkbahar","İbrahim","Pancar",900]
[null,"İlkbahar","Engin","Patates",300]
[null,"İlkbahar","Deniz","Marul",200]
[null,"İlkbahar","İbrahim","Turp",1000]
[null,"İlkbahar","Engin","Pancar",220]
[null,"İlkbahar","Deniz","Patates",400]
[null,"İlkbahar","İbrahim","Marul",200]
[null,"İlkbahar","Engin","Turp",400]
[null,"Yaz","Deniz","Yaban Mersini",100]
[null,"Yaz","İbrahim","Çilek",30]
[null,"Yaz","Engin","Üzüm",123]
[null,"Yaz","Deniz","Balkabağı",300]
[null,"Yaz","İbrahim","Yaban Mersini",350]
[null,"Yaz","Engin","Çilek",230]
[null,"Yaz","Deniz","Üzüm",120]
[null,"Yaz","İbrahim","Balkabağı",640]
[null,"Yaz","Engin","Yaban Mersini",530]
[null,"Yaz","Deniz","Çilek",560]
[null,"Yaz","İbrahim","Üzüm",240]
[null,"Yaz","Engin","Balkabağı",250]
[null,"Sonbahar","Deniz","Kabak",62]
[null,"Sonbahar","İbrahim","Yeşil Kabak",600]
[null,"Sonbahar","Engin","Elma",340]
[null,"Sonbahar","Deniz","Portakal",205]
[null,"Sonbahar","İbrahim","Kabak",500]
[null,"Sonbahar","Engin","Yeşil Kabak",403]
[null,"Sonbahar","Deniz","Elma",503]
[null,"Sonbahar","İbrahim","Portakal",2000]
[null,"Sonbahar","Engin","Kabak",140]
[null,"Sonbahar","Deniz","Yeşil Kabak",502]
[null,"Sonbahar","İbrahim","Elma",120]
[null,"Sonbahar","Engin","Portakal",50]

{"sheet":"20","index":20,"n_rows":17,"n_cols":11,"rows_kept":17}
["1. Bu örnekteki PivotTable Alanı, B12 ile C17 arasındaki hücrelerdedir. Bu hücrelerden birine gidin. \n\n"]
["2. PivotTable Alanları Listesini başlatmak için Press ALT+JZ, L2 tuşlarına basın. Odak varsayılan olarak Ara metin kutusuna geçer: “Aranacak sözcükleri yazın” düzenlenir. Hiçbir şey yazmadan bir kez Sekme tuşuna basın. NOT: Alan Listesi başlamazsa ALT+JZ, L2 tuşlarına tekrar basın."]
["3. Ok tuşlarını kullanarak Satış Temsilcisi alanına gidin. Satırlar’ alanına Satış Temsilcisi alanını eklemek için ARA ÇUBUĞUNA basın. Satış Temsilcisi ayrıntılarını Sütunlar’a alanında göstermek istiyorsanız Satır bölümünde Satış Tem. alanına gitmek için Sekme tuşunu kullanın ve sonra ARA ÇUBUĞUNA basıp “Sütun Etiketlerine Taşı”yı seçin. PivotTable Alanları bölmesinden çıkmak için ESC tuşuna basın. "]
["4. Sonbaharda en çok öğeyi kimin sattığını belirleyin ve K8 hücresinde seçim yapın. "]
["Bu öğreticiye devam etmek için CTRL+PAGE DOWN tuşlarına basın. Bir önceki sayfaya girmek için CTRL+PAGE UP tuşlarına basın."]
[]
[{"$nulls":10},"Birini seçin:"]
[]
[{"$nulls":10},{"$f":"IF($K$8=\"İbrahim\",\"Doğru yoldasınız!\",IF($K$8=\"Engin\",\"Tekrar deneyin...\",IF($K$8=\"Deniz\",\"Pek doğru değil...\",IF($K$8=\" \",\" \",\" \"))))","v":" "}]
[]
[]
[null,"Row Labels","Toplam Satılan birim"]
[null,"Sonbahar",{"v":5425,"d":"5,425"}]
[null,"İlkbahar",{"v":4760,"d":"4,760"}]
[null,"Yaz",{"v":3473,"d":"3,473"}]
[null,"Kış",{"v":4100,"d":"4,100"}]
[null,"Grand Total",{"v":17758,"d":"17,758"}]

{"sheet":"21","index":21,"n_rows":14,"n_cols":10,"rows_kept":14}
["1. “Toplam Satılan birim ” adlı PivotTable’ı etkinleştirmek için B13 hücresine tıklayın.\n\n"]
["2. PivotTable Alanları Listesini başlatmak için Press ALT+JZ, L2 tuşlarına basın. Odak varsayılan olarak Ara metin kutusuna geçer: “Aranacak sözcükleri yazın” düzenlenir. Hiçbir şey yazmadan bir kez Sekme tuşuna basın. NOT: Alan Listesi başlamazsa ALT+JZ, L2 tuşlarına tekrar basın."]
["3. Örneği, sol tarafta mevsimler ve mevsimlerin altında girintili bir şekilde satış temsilcilerinin yer aldığı dikey bir PivotTable olarak genişletmek için ok tuşlarını ve ARA ÇUBUĞUNU kullanın. PivotTable Alanları bölmesinden çıkmak için ESC tuşuna basın. "]
["Bu öğreticiye devam etmek için CTRL+PAGE DOWN tuşlarına basın. Bir önceki sayfaya girmek için CTRL+PAGE UP tuşlarına basın."]
[{"$nulls":9},{"$f":"IF(AND(B$14=\"İlkbahar\",$C$17=2400),\"Tebrikler! İkincil bir satır alanı\",\" \")","v":" "}]
[{"$nulls":9},{"$f":"IF(AND(B$14=\"İlkbahar\",$C$17=2400),\"yerleştirdiniz. Şimdi aşağı\",\" \")","v":" "}]
[{"$nulls":9},{"$f":"IF(AND(B$14=\"İlkbahar\",$C$17=2400),\"kaydırın ve Sonraki’ye tıklayın.\",\" \")","v":" "}]
[]
[]
[]
[]
[]
[null,"Toplam Satılan birim"]
[null,{"v":17758,"d":"17,758"}]

{"sheet":"22","index":22,"n_rows":14,"n_cols":10,"rows_kept":14}
["1. “Toplam Satılan birim” adlı PivotTable’ı etkinleştirmek için B13 hücresine tıklayın."]
["2. PivotTable Alanları Listesini başlatmak için Press ALT+JZ, L2 tuşlarına basın. Odak varsayılan olarak Ara metin kutusuna geçer: “Aranacak sözcükleri yazın” düzenlenir. Hiçbir şey yazmadan bir kez Sekme tuşuna basın. NOT: Alan Listesi başlamazsa ALT+JZ, L2 tuşlarına tekrar basın."]
["3. Örneği, her bir ürünü kendi satırında ve her bir mevsimi kendi sütununda gösterecek şekilde değiştirmek üzere ok tuşlarını ve ARA ÇUBUĞUNU kullanın."]
["Bu öğreticiye devam etmek için CTRL+PAGE DOWN tuşlarına basın. Bir önceki sayfaya girmek için CTRL+PAGE UP tuşlarına basın.",{"$nulls":8},{"$f":"IF(AND($B$15=\"Balkabağı\",$G$28=1505),\"Tebrikler! Sola bir satır alanı\",\" \")","v":" "}]
[{"$nulls":9},{"$f":"IF(AND($B$15=\"Balkabağı\",$G$28=1505),\"ve dört yeni sütunu olan bir\",\" \")","v":" "}]
[{"$nulls":9},{"$f":"IF(AND($B$15=\"Balkabağı\",$G$28=1505),\"sütun alanı yerleştirdiniz.\",\" \")","v":" "}]
[{"$nulls":9},{"$f":"IF(AND($B$15=\"Balkabağı\",$G$28=1505),\"Aşağı kaydırın ve Sonraki’ye\",\" \")","v":" "}]
[{"$nulls":9},{"$f":"IF(AND($B$15=\"Balkabağı\",$G$28=1505),\"tıklayın...\",\" \")","v":" "}]
[]
[]
[]
[]
[null,"Toplam Satılan birim"]
[null,17758]

{"sheet":"23","index":23,"n_rows":16,"n_cols":18,"rows_kept":16}
["1. “Satılan Birim toplamı” adlı PivotTable’ı etkinleştirmek için B13 hücresine tıklayın.\n\n"]
["2. PivotTable Alanları Listesini başlatmak için Press ALT+JZ, L2 tuşlarına basın. Odak varsayılan olarak Ara metin kutusuna geçer: “Aranacak sözcükleri yazın” düzenlenir. Hiçbir şey yazmadan bir kez Sekme tuşuna basın. NOT: Alan Listesi başlamazsa ALT+JZ, L2 tuşlarına tekrar basın."]
["3. Örneği, sol tarafta Satış Temsilcileri ve bunun altında girintili olarak Mevsimleri gösterecek şekilde değiştirmek için Sekme ve ok tuşları ile ARA ÇUBUĞUNU kullanın."]
["Bu öğreticiye devam etmek için CTRL+PAGE DOWN tuşlarına basın. Bir önceki sayfaya girmek için CTRL+PAGE UP tuşlarına basın."]
[{"$nulls":8},{"$f":"IF(AND($B$14=\"Engin\",$C$14=5036),\"Tebrikler! Artık verileri okumak\",\" \")","v":" "}]
[{"$nulls":8},{"$f":"IF(AND($B$14=\"Engin\",$C$14=5036),\"daha kolay. Aşağı kaydırın ve\",\" \")","v":" "}]
[{"$nulls":8},{"$f":"IF(AND($B$14=\"Engin\",$C$14=5036),\"Sonraki’ye tıklayın...\",\" \")","v":" "}]
[]
[]
[]
[]
[]
[null,null,"Column Labels"]
[null,null,"Engin",{"$nulls":3},"Engin Total","İbrahim",{"$nulls":3},"İbrahim Total","Deniz",{"$nulls":3},"Deniz Total","Grand Total"]
[null,null,"Sonbahar","İlkbahar","Yaz","Kış",null,"Sonbahar","İlkbahar","Yaz","Kış",null,"Sonbahar","İlkbahar","Yaz","Kış"]
[null,"Toplam Satılan birim",933,{"v":1320,"d":"1,320"},{"v":1133,"d":"1,133"},{"v":1650,"d":"1,650"},{"v":5036,"d":"5,036"},{"v":3220,"d":"3,220"},{"v":2400,"d":"2,400"},{"v":1260,"d":"1,260"},{"v":1420,"d":"1,420"},{"v":8300,"d":"8,300"},{"v":1272,"d":"1,272"},{"v":1040,"d":"1,040"},{"v":1080,"d":"1,080"},{"v":1030,"d":"1,030"},{"v":4422,"d":"4,422"},{"v":17758,"d":"17,758"}]

{"sheet":"24","index":24,"n_rows":14,"n_cols":9,"rows_kept":14}
["1. “Toplam Satılan birim” adlı PivotTable’ı etkinleştirmek için B13 hücresine tıklayın."]
["2. PivotTable Alanları Listesini başlatmak için Press ALT+JZ, L2 tuşlarına basın. Odak varsayılan olarak Ara metin kutusuna geçer: “Aranacak sözcükleri yazın” düzenlenir. Hiçbir şey yazmadan bir kez Sekme tuşuna basın. NOT: Alan Listesi başlamazsa ALT+JZ, L2 tuşlarına tekrar basın."]
["3. Örneği, her bir Satış Temsilcisinin, solda Mevsimler öğesi, bunun altında ise girintili olarak Ürünler öğesinin yer aldığı kendi sütun alanına sahip olduğu şekilde değiştirmek için Sekme ve ok tuşları ile ARA ÇUBUĞUNU kullanın."]
["4. I9 hücresini seçin ve Halit’in kış boyunca kaç greyfurt sattığını seçin."]
["Bu öğreticiye devam etmek için CTRL+PAGE DOWN tuşlarına basın. Bir önceki sayfaya girmek için CTRL+PAGE UP tuşlarına basın."]
[]
[]
[{"$nulls":8},"Birini seçin:"]
[]
[{"$nulls":8},{"$f":"IF($I$9=400,\"You're right!\",IF($I$9=530,\"Try again…\",IF($I$9=123,\"Not quite…\",\" \")))","v":" "}]
[]
[]
[null,"Toplam Satılan birim"]
[null,{"v":17758,"d":"17,758"}]

{"sheet":"Daha fazla bilgi","index":25,"n_rows":7,"n_cols":1,"rows_kept":7}
["Tebrikler. PivotTable’lar harika, değil mi?"]
["Ancak devam etmenizi tavsiye ederiz! Daha keşfedeceğiniz çok şey var..."]
["Pivot hakkında daha fazlası\nPivotTable hakkındaki bu faydalı makaleleri okuyarak başka neler yapabileceğinizi keşfedin."]
["Yenileme hakkında\nPivotTable’ları yenileme hakkındaki bu önemli makaleyi okuyun. "]
["Topluluk\nDiğer Excel hayranlarıyla bağlantı kurun. Size yardımcı olabilirler ve siz onlara yardımcı olabilirsiniz."]
[]
[" "]